bitfinex/quotes_ETHUSD_20240907
["timestamp","ask_amount","ask_price","bid_price","bid_amount"]
[1725742662286,2.12097157,2279.7,2279.6,8.77346]
[1725742662493,0.44531584,2279.7,2279.6,8.77346]
[1725742662647,0.17234613,2279.8,2279.6,8.77346]
[1725742662648,0.17234613,2279.8,2279.7,8.77308]
[1725742662843,1.67565573,2279.9,2279.8,4.38634]
[1725742663150,1.67565573,2279.9,2279.8,8.77268]
[1725742669255,1.67565573,2279.9,2279.8,4.38634]
[1725742669477,2.67097157,2279.9,2279.7,4.38642]
[1725742669643,1.67565573,2279.8,2279.7,4.38642]
[1725742670453,3.95985573,2279.8,2279.7,4.38642]
[1725742673183,1.67565573,2279.8,2279.7,4.38642]
[1725742673553,2.2842,2279.7,2279.1,3.0]
[1725742673749,2.2842,2279.7,2278.9,3.31899063]
[1725742673750,0.99531584,2279.6,2279.3,4.38727]
[1725742673962,2.2842,2279.5,2279.2,4.38733]
[1725742674167,0.55,2279.4,2279.2,8.77472]
[1725742674749,0.55,2279.4,2279.3,4.38731]
[1725742674977,2.22565573,2279.4,2279.3,4.38731]
[1725742678601,0.17187715,2279.6,2279.5,4.38692]
[1725742678904,1.67565573,2279.6,2279.5,4.38692]
[1725742680398,1.67565573,2279.6,2279.5,8.77384]
[1725742680691,1.67565573,2279.6,2279.5,10.089953]
[1725742680896,1.67565573,2279.6,2279.5,12.391853]
[1725742681694,1.67565573,2279.6,2279.5,10.089953]
[1725742681857,1.67565573,2279.6,2279.5,8.77384]
[1725742701240,7.50813,2280.0,2279.9,8.7723]
[1725742701241,5.24373,2280.0,2279.9,8.7723]
[1725742701541,2.4533,2280.4,2280.2,4.38541]
[1725742701741,2.40923991,2280.3,2280.2,4.38541]
[1725742702506,2.83862328,2280.3,2280.1,4.38572]
[1725742703430,2.4533,2280.2,2280.1,4.38572]
[1725742704748,3.44861584,2280.2,2279.9,4.38602]
[1725742704901,1.67565573,2280.0,2279.9,4.38602]
[1725742705412,2.4533,2279.9,2279.7,8.7728]
[1725742705604,1.67565573,2279.8,2279.7,8.7728]
[1725742705805,1.67565573,2279.8,2279.7,11.7728]
[1725742707253,1.67565573,2279.8,2279.3,6.67254]
[1725742707254,1.67565573,2279.8,2279.5,4.38687]
[1725742707550,1.67565573,2279.6,2279.5,4.38677]
[1725742709108,1.67565573,2279.6,2279.5,8.77369]
[1725742715363,1.67565573,2279.6,2279.5,10.318319]
[1725742715974,1.67565573,2279.8,2279.7,4.38654]
[1725742720487,1.67565573,2279.8,2279.7,8.77308]
[1725742723069,1.85509164,2279.8,2279.7,8.77308]
[1725742728565,1.67565573,2279.8,2279.7,8.77308]
[1725742729177,5.24373,2280.2,2280.1,8.77154]
[1725742729391,6.91938573,2280.2,2280.1,8.77154]
[1725742730506,7.09013451,2280.2,2280.1,8.77154]
[1725742730676,7.53545035,2280.2,2280.1,8.77154]
[1725742732484,2.29172035,2280.2,2280.1,8.77154]
[1725742733474,0.61606462,2280.2,2280.1,8.77154]
[1725742733792,0.61606462,2280.2,2280.1,9.884914]
[1725742733793,1.84640451,2280.2,2280.1,9.884914]
[1725742734807,1.84640451,2280.2,2280.1,8.77154]
[1725742736007,1.84640451,2280.2,2280.1,4.38577]
[1725742736214,2.84172035,2280.2,2279.9,4.38612]
[1725742736417,1.67565573,2280.0,2279.9,4.38612]
[1725742736808,1.67565573,2280.0,2279.2,0.91869063]
[1725742736809,4.4664661,2280.0,2279.6,4.3866]
[1725742736988,4.4664661,2280.0,2279.3,8.77439]
[1725742736989,2.4637,2279.6,2279.3,8.77439]
[1725742737323,1.67565573,2279.4,2279.3,4.38718]
[1725742740601,1.67565573,2279.4,2279.3,8.77449]
[1725742740801,1.67565573,2279.4,2279.3,9.41996562]
[1725742740997,1.67565573,2279.4,2279.3,8.77449]
[1725742744231,2.4021,2279.9,2279.7,4.38651]
[1725742744547,2.67097157,2279.8,2279.5,8.77358]
[1725742744855,1.67565573,2279.6,2279.5,8.77358]
[1725742749022,1.67565573,2279.6,2279.3,4.38715]
[1725742749335,1.67565573,2279.4,2279.3,4.38715]
[1725742749936,1.67565573,2279.4,2279.3,8.77446]
[1725742751845,1.67565573,2279.6,2279.5,4.38692]
[1725742752034,0.99531584,2279.8,2279.6,4.38655]
[1725742752231,1.67565573,2279.7,2279.6,4.38655]
[1725742752461,2.22565573,2279.7,2279.6,4.38655]
[1725742755943,2.67097157,2279.7,2279.6,4.38655]
[1725742756243,3.17827873,2279.7,2279.6,4.38655]
[1725742759766,2.67097157,2279.7,2279.6,4.38655]
[1725742759967,6.79958,2279.6,2279.1,4.38759]
[1725742760163,1.67565573,2279.2,2279.1,4.38759]
[1725742760367,1.67565573,2279.2,2279.1,8.77528]
[1725742768195,7.65643,2279.8,2279.2,2.3354]
[1725742768357,1.67565573,2279.3,2279.2,11.1104]
[1725742770875,1.67565573,2279.3,2279.2,15.4979]
[1725742771080,1.67565573,2279.3,2279.2,11.1104]
[1725742774418,1.67565573,2279.3,2279.2,12.660194]
[1725742777286,1.67565573,2279.3,2279.2,8.775]
[1725742778815,1.67565573,2279.3,2279.2,4.3875]
[1725742779017,2.12097157,2279.3,2279.2,4.3875]
[1725742779921,2.343,2279.2,2278.5,0.91869063]
[1725742780124,4.01865573,2278.6,2278.3,4.38913]
[1725742780346,1.67565573,2278.4,2278.3,4.38912]
[1725742781197,1.67565573,2278.4,2277.7,0.91869063]
[1725742781198,1.67565573,2278.4,2278.0,4.38966]
[1725742781408,1.67565573,2278.4,2277.7,4.39029]
[1725742781409,1.67565573,2278.1,2277.7,4.39029]
[1725742781616,1.67565573,2277.9,2277.7,4.39029]
[1725742781802,1.67565573,2277.9,2277.6,4.39047]
[1725742782018,1.67565573,2277.7,2277.6,4.39047]
[1725742782592,1.67565573,2277.7,2277.6,8.78105]
[1725742782789,1.67565573,2277.7,2277.6,9.659155]
[1725742783011,1.67565573,2277.7,2277.6,8.78105]
[1725742784006,4.02864752,2277.7,2277.6,4.39047]
[1725742785613,4.02864752,2277.7,2277.6,8.78105]
[1725742785835,4.02864752,2277.7,2277.6,4.39047]
[1725742794617,4.53546336,2277.7,2277.5,8.78127]
[1725742795312,4.53546336,2277.7,2277.5,4.3906]
[1725742795830,4.53546336,2277.7,2277.6,4.39058]
[1725742797901,4.53546336,2277.7,2277.5,4.3906]
[1725742798106,4.53546336,2277.7,2277.5,8.78126]
[1725742798318,4.53546336,2277.7,2277.5,4.3906]
[1725742798782,4.53546336,2277.7,2277.5,8.78128]
[1725742800981,4.53546336,2277.7,2277.5,4.3906]
[1725742802499,4.53546336,2277.7,2277.5,8.78128]
[1725742802915,4.53546336,2277.7,2277.5,9.91222814]
[1725742803292,4.53546336,2277.7,2277.5,5.52154814]
[1725742804027,1.67840894,2277.6,2277.5,5.52154814]
[1725742805524,1.67840894,2277.6,2277.5,4.3906]
[1725742805818,2.18522478,2277.6,2277.3,4.5076414]
[1725742806135,4.89438917,2277.9,2276.6,4.39233]
[1725742806136,4.39127,2277.3,2276.6,4.3924]
[1725742806277,1.67840894,2276.7,2276.6,4.3924]
[1725742806483,2.18522478,2276.7,2276.6,4.3924]
[1725742806684,2.18522478,2276.7,2276.5,2.3631]
[1725742806685,2.58960395,2276.7,2276.5,2.3631]
[1725742806979,2.68960395,2276.6,2276.1,4.39335]
[1725742807180,2.68960395,2276.6,2275.5,4.3945]
[1725742807181,1.67840894,2276.2,2275.5,4.3945]
[1725742807482,6.69734,2276.8,2276.1,4.39334]
[1725742807805,1.67840894,2276.3,2276.1,4.39334]
[1725742808121,1.67840894,2276.3,2275.7,8.78815]
[1725742808318,1.67840894,2276.3,2275.6,0.43995]
[1725742808319,1.67840894,2276.2,2275.6,0.43995]
[1725742808622,5.24373,2277.1,2275.9,2.3631]
[1725742808821,1.67840894,2276.7,2276.5,4.3927]
[1725742808984,1.67840894,2276.7,2276.0,0.675711]
[1725742809179,1.67840894,2276.5,2276.1,4.39344]
[1725742809380,0.5634625,2276.4,2276.3,4.34307]
[1725742809646,0.5634625,2276.4,2276.1,8.78676]
[1725742809923,1.67840894,2276.3,2276.1,4.39335]
[1725742810082,4.59657117,2276.4,2276.1,4.39335]
[1725742810279,4.59657117,2276.4,2275.9,7.39372]
[1725742810280,5.10338701,2276.4,2275.9,7.39372]
[1725742810485,4.03310867,2276.2,2276.0,3.0]
[1725742811618,4.03310867,2276.2,2276.0,4.39366]
[1725742812045,4.03310867,2276.2,2276.0,4.39356]
[1725742812233,4.03310867,2276.2,2276.0,8.78713]
[1725742812443,4.03310867,2276.2,2276.1,4.39348]
[1725742812755,4.03310867,2276.2,2276.0,8.78713]
[1725742813135,4.53992451,2276.2,2275.9,7.39383]
[1725742813322,5.55737946,2276.2,2275.9,4.39383]
[1725742813520,5.10338701,2276.2,2276.0,4.39361]
[1725742814229,5.10338701,2276.2,2276.0,4.34361]
[1725742815114,5.10338701,2276.2,2275.9,4.39383]
[1725742815115,1.07027834,2276.1,2275.9,4.39383]
[1725742815498,1.07027834,2276.1,2275.9,4.39375]
[1725742815631,1.07027834,2276.1,2275.9,8.7875]
[1725742815818,1.07027834,2276.1,2276.0,4.39367]
[1725742816160,4.03310867,2276.2,2276.1,8.78696]
[1725742816454,4.59657117,2276.2,2276.1,8.78696]
[1725742816618,5.14657117,2276.2,2275.7,4.39409]
[1725742816820,4.59657117,2276.2,2276.1,4.39348]
[1725742817040,4.03310867,2276.2,2276.1,8.78696]
[1725742817652,4.03310867,2276.4,2276.3,8.78618]
[1725742818755,5.10338701,2276.6,2276.5,4.3927]
[1725742818932,6.9769025,2276.6,2276.5,4.3927]
[1725742819277,6.9769025,2276.6,2276.4,4.39287]
[1725742819460,0.55,2276.5,2276.4,4.39287]
[1725742819768,1.62027834,2276.5,2276.4,4.39287]
[1725742823965,5.35662416,2276.6,2276.5,8.7854]
[1725742823966,4.03310867,2276.6,2276.5,8.7854]
[1725742824279,5.10338701,2276.9,2276.8,4.39212]
[1725742824989,5.10338701,2276.9,2276.8,8.78424]
[1725742826066,5.10338701,2276.9,2276.8,4.39212]
[1725742827306,5.65338701,2276.9,2276.8,4.39212]
[1725742827777,5.65338701,2276.9,2276.8,8.78424]
[1725742828102,7.90758701,2276.9,2276.7,4.39222]
[1725742828302,1.1153387,2276.8,2276.7,4.39222]
[1725742828505,1.62215454,2276.8,2276.7,4.39222]
[1725742830601,1.62215454,2276.8,2276.6,4.3925]
[1725742830809,4.53992451,2276.7,2276.6,4.39241]
[1725742830993,5.08992451,2276.7,2276.6,4.39241]
[1725742831810,4.03310867,2276.7,2276.6,8.78492]
[1725742832113,3.09167789,2277.2,2276.8,4.39212]
[1725742832114,4.53992451,2276.9,2276.8,4.39212]
[1725742832320,5.65338701,2276.9,2276.8,4.39212]
[1725742832981,5.65338701,2276.9,2276.4,4.39288]
[1725742833190,4.03310867,2276.7,2276.6,4.39236]
[1725742833401,4.58310867,2276.7,2276.6,4.39236]
[1725742834185,4.03310867,2276.7,2276.6,8.78487]
[1725742835024,4.59657117,2276.9,2276.8,8.78424]
[1725742835179,4.03310867,2276.9,2276.8,8.78424]
[1725742835379,4.53992451,2277.1,2277.0,8.78348]
[1725742836085,2.74955338,2277.1,2277.0,8.78348]
[1725742836513,2.74955338,2277.1,2276.9,4.39177]
[1725742836715,0.50681584,2277.0,2276.9,8.7837]
[1725742836915,1.07027834,2277.0,2276.9,8.7837]
[1725742837301,1.62027834,2277.0,2276.9,8.7837]
[1725742837884,1.05681584,2277.0,2276.9,8.7837]
[1725742838103,1.05681584,2277.0,2276.9,4.39177]
[1725742839321,1.05681584,2277.0,2276.9,8.7837]
[1725742839930,4.03067714,2277.1,2276.9,8.7837]
[1725742839931,4.03067714,2277.1,2277.0,8.78348]
[1725742840147,0.50681584,2277.2,2277.1,4.39155]
[1725742840350,2.348,2277.6,2277.2,3.88449416]
[1725742840351,0.51650729,2277.4,2277.2,3.88449416]
[1725742840509,0.55,2277.3,2277.2,3.88449416]
[1725742840847,1.53108848,2277.3,2277.2,3.88449416]
[1725742842153,5.56176562,2277.3,2277.2,8.27584416]
[1725742842316,5.09718443,2277.3,2277.2,8.27584416]
[1725742842510,4.03067714,2277.5,2277.4,4.39097]
[1725742842908,4.03067714,2277.5,2277.4,8.78194]
[1725742844951,5.01176562,2277.5,2277.4,8.78194]
[1725742845845,5.01176562,2277.5,2277.4,4.39097]
[1725742846008,5.53081428,2277.5,2277.4,4.39097]
[1725742846646,5.01176562,2277.5,2277.4,4.39097]
[1725742846948,4.03067714,2277.5,2277.4,8.78194]
[1725742847111,4.03067714,2277.7,2277.6,4.39058]
[1725742847311,4.58067714,2277.7,2277.6,4.39058]
[1725742847511,7.4848537,2277.7,2276.9,2.3961]
[1725742847748,4.03067714,2277.3,2277.2,8.7827]
[1725742848729,4.03067714,2277.3,2277.2,4.39135]
[1725742849317,4.03067714,2277.3,2277.0,4.39171]
[1725742849318,6.37867714,2277.3,2277.0,4.39171]
[1725742849555,6.92867714,2277.3,2277.0,4.39171]
[1725742849850,7.6087317,2277.3,2277.0,4.39171]
[1725742850057,0.55,2277.2,2277.0,4.39171]
[1725742850548,0.55,2277.2,2277.0,8.78335]
[1725742850964,0.55,2277.2,2276.8,3.0]
[1725742850965,0.55,2277.2,2276.9,4.39191]
[1725742851114,4.03067714,2277.0,2276.8,4.392]
[1725742851320,4.03067714,2277.0,2276.8,8.78402]
[1725742851531,4.03067714,2277.0,2276.8,4.392]
[1725742851830,4.03067714,2277.0,2276.8,8.78403]
[1725742852141,4.03067714,2277.0,2276.8,4.392]
[1725742852329,0.55,2276.9,2276.8,4.392]
[1725742853597,0.55,2276.9,2276.7,4.39227]
[1725742854271,0.55,2276.9,2276.8,4.39212]
[1725742855057,2.898,2276.9,2276.6,4.39251]
[1725742855254,4.03067714,2276.7,2276.6,4.39251]
[1725742855501,4.03067714,2276.7,2276.5,4.39259]
[1725742855704,0.55,2276.6,2276.4,4.39288]
[1725742855908,4.03067714,2276.5,2276.4,4.39288]
[1725742856704,4.03067714,2276.7,2276.6,4.39251]
[1725742856859,4.03067714,2276.9,2276.7,4.3922]
[1725742857063,4.7666537,2276.9,2276.7,4.3922]
[1725742858102,4.7666537,2276.9,2276.8,4.39212]
[1725742858408,4.03067714,2276.9,2276.8,4.39212]
[1725742859864,4.03067714,2276.9,2276.8,8.78424]
[1725742860461,4.03067714,2276.9,2276.8,4.39212]
[1725742862105,9.27440714,2277.3,2277.2,4.39135]
[1725742862267,4.54718443,2277.3,2277.2,4.39135]
[1725742862473,5.01176562,2277.3,2277.2,4.39135]
[1725742863185,4.03067714,2277.3,2277.2,8.7827]
[1725742866112,3.41978848,2277.7,2277.4,8.78194]
[1725742866113,4.03067714,2277.5,2277.4,8.78194]
[1725742866317,4.49525833,2277.5,2277.4,4.39097]
[1725742866619,4.49525833,2277.5,2277.3,4.39114]
[1725742866620,5.01176562,2277.5,2277.3,4.39114]
[1725742868076,5.01176562,2277.5,2277.2,8.78244]
[1725742868392,4.03067714,2277.3,2277.2,4.3912]
[1725742871493,4.03067714,2277.5,2277.4,4.39097]
[1725742871691,4.03067714,2277.7,2277.6,4.39058]
[1725742871923,4.54718443,2277.7,2277.6,4.39058]
[1725742872127,5.01176562,2277.7,2277.6,4.39058]
[1725742876693,6.32314798,2277.7,2277.3,4.39113]
[1725742876890,4.03067714,2277.5,2277.3,4.39113]
[1725742877427,4.03067714,2277.5,2277.4,4.39097]
[1725742877605,4.58067714,2277.5,2277.4,4.39097]
[1725742878927,4.03067714,2277.5,2277.4,8.78194]
[1725742880435,4.03067714,2277.7,2277.5,4.39059]
[1725742880602,4.03067714,2277.7,2277.6,4.39058]
[1725742880802,4.58067714,2277.7,2277.6,4.39058]
[1725742881210,4.03067714,2277.7,2277.6,4.39058]
[1725742881416,4.03067714,2277.7,2277.6,8.78116]
[1725742881642,5.01176562,2277.7,2277.6,4.39058]
[1725742882538,5.01176562,2277.7,2277.4,4.39081]
[1725742882539,5.51294218,2277.7,2277.4,8.78166]
[1725742882741,4.03067714,2277.5,2277.4,4.39081]
[1725742883902,4.03067714,2277.5,2277.1,4.39141]
[1725742884108,4.03067714,2277.2,2277.1,4.39141]
[1725742884333,4.03067714,2277.2,2277.1,8.78296]
[1725742885622,2.3247,2278.0,2277.7,4.39023]
[1725742885918,4.03067714,2277.8,2277.7,4.39023]
[1725742886719,4.03067714,2277.8,2277.5,8.78123]
[1725742886948,5.0190876,2277.8,2277.6,4.39053]
[1725742888436,5.195876,2277.8,2277.6,4.39053]
[1725742888733,0.1767884,2277.8,2277.7,4.39039]
[1725742889042,4.03067714,2278.0,2277.7,4.39039]
[1725742890044,4.03067714,2277.8,2277.7,4.39039]
[1725742893199,7.39146303,2277.8,2277.3,4.39103]
[1725742893327,4.03067714,2277.5,2277.0,4.39173]
[1725742893523,4.03067714,2277.2,2277.0,4.39173]
[1725742893753,6.35537714,2277.2,2276.5,4.39256]
[1725742893951,4.03067714,2276.6,2276.2,4.39326]
[1725742894136,4.03067714,2276.4,2276.2,4.39326]
[1725742894341,4.03067714,2276.4,2276.1,6.79634]
[1725742894531,4.03067714,2276.4,2276.2,4.39328]
[1725742897948,4.03067714,2276.4,2276.2,8.78646]
[1725742898163,4.03067714,2276.6,2276.5,4.3927]
[1725742898417,4.03067714,2276.6,2276.2,1.118936]
[1725742898418,4.03067714,2276.8,2276.4,8.78561]
[1725742898572,0.98841046,2277.0,2276.4,8.78556]
[1725742898573,4.03067714,2276.6,2276.4,8.78556]
[1725742898973,4.03067714,2276.6,2276.5,4.3927]
[1725742900108,4.03067714,2276.8,2276.6,4.39233]
[1725742900295,4.03067714,2276.8,2276.7,4.39232]
[1725742900496,4.03067714,2276.8,2276.6,4.39233]
[1725742902997,4.50258031,2277.0,2276.6,1.117303]
[1725742903200,0.51650729,2276.9,2276.8,4.39203]
[1725742904403,0.51650729,2276.9,2276.8,8.78415]
[1725742904588,5.24373,2277.4,2277.3,4.39116]
[1725742904917,4.03067714,2277.5,2277.3,4.39116]
[1725742905126,4.20959234,2277.5,2277.2,4.39134]
[1725742905282,0.98841046,2277.4,2277.2,4.39134]
[1725742905627,0.98841046,2277.4,2276.9,2.3879]
[1725742905628,4.03067714,2277.3,2276.9,11.17145]
[1725742905850,0.98841046,2277.2,2276.9,11.17145]
[1725742907115,0.98841046,2277.2,2277.0,4.39173]
[1725742907860,4.03067714,2277.1,2276.5,4.39257]
[1725742908161,4.03067714,2277.1,2276.4,4.39286]
[1725742908162,4.03067714,2276.8,2276.4,4.39286]
[1725742909258,4.03067714,2276.8,2276.5,4.39266]
[1725742909569,4.03067714,2276.8,2276.4,4.39286]
[1725742909763,4.03067714,2276.8,2276.4,8.7856]
[1725742910052,4.03067714,2276.8,2276.4,4.39279]
[1725742911613,4.03067714,2276.8,2276.4,8.7856]
[1725742913252,4.03067714,2276.8,2276.4,8.78557]
[1725742914761,4.03067714,2276.8,2276.5,4.39269]
[1725742914961,4.03067714,2276.8,2276.6,4.39248]
[1725742918179,4.03067714,2276.8,2276.5,8.78529]
[1725742918402,6.02760409,2276.8,2276.3,4.39296]
[1725742918593,6.02760409,2276.8,2276.4,3.0]
[1725742918594,10.41974409,2276.8,2276.4,3.0]
[1725742919423,5.0190876,2276.8,2276.5,4.39268]
[1725742921260,5.0190876,2276.8,2276.4,7.39271]
[1725742921545,5.0190876,2276.8,2276.5,4.3926]
[1725742921912,0.98841046,2276.8,2276.7,4.39232]
[1725742922111,4.03067714,2277.1,2276.8,4.39209]
[1725742923458,5.0190876,2277.1,2276.9,4.39191]
[1725742924127,0.98841046,2277.0,2276.8,4.39202]
[1725742924546,0.98841046,2277.0,2276.8,8.78405]
[1725742924839,0.98841046,2277.0,2276.8,4.39202]
[1725742925039,4.03067714,2277.1,2277.0,4.39174]
[1725742926035,4.03067714,2277.1,2276.9,4.39191]
[1725742926352,4.03067714,2277.1,2276.9,8.78382]
[1725742926657,4.39189,2277.0,2276.0,0.91869063]
[1725742926853,4.39189,2277.0,2275.6,4.39444]
[1725742926854,8.42406714,2276.2,2275.6,4.39427]
[1725742927013,2.3151,2276.3,2275.6,4.39427]
[1725742927014,4.03067714,2276.0,2275.7,4.39411]
[1725742927217,1.24418593,2275.9,2275.6,4.39427]
[1725742927411,1.24418593,2275.9,2275.7,4.39422]
[1725742927813,0.63798651,2275.9,2275.7,4.39422]
[1725742929297,4.03067714,2275.8,2275.7,4.39422]
[1725742929518,4.7035459,2275.8,2275.7,4.39422]
[1725742934103,0.67286876,2275.8,2275.7,4.39422]
[1725742936962,1.34273485,2275.8,2275.7,4.39422]
[1725742937765,1.34273485,2275.8,2275.7,8.78847]
[1725742937766,0.67286876,2275.8,2275.7,8.78847]
[1725742937959,4.70054323,2276.0,2275.9,4.39386]
[1725742938286,5.37341199,2276.0,2275.9,4.39386]
[1725742942607,5.37341199,2276.0,2275.8,4.39397]
[1725742942920,1.34273485,2275.9,2275.8,4.39395]
[1725742944147,1.34273485,2275.9,2275.8,8.7879]
[1725742944528,1.34273485,2275.9,2275.8,4.39395]
[1725742951881,1.34273485,2275.9,2275.8,12.162919]
[1725742952068,9.77279612,2276.5,2276.2,4.39317]
[1725742952231,4.03067714,2276.3,2276.0,4.39351]
[1725742952437,4.03067714,2276.1,2275.9,4.39373]
[1725742952638,1.29556818,2276.0,2275.8,11.78785]
[1725742952863,1.29556818,2276.0,2275.8,7.3939]
[1725742952864,4.03067714,2275.9,2275.8,7.3939]
[1725742953137,4.7035459,2275.9,2275.8,7.3939]
[1725742955944,2.3538091,2275.9,2275.8,7.3939]
[1725742956843,2.3538091,2275.9,2275.8,4.3939]
[1725742957042,2.2996,2275.8,2275.5,0.005]
[1725742957283,6.07538034,2275.6,2275.5,0.005]
[1725742957449,7.37094852,2275.6,2275.5,0.005]
[1725742958950,2.97650852,2275.6,2275.5,0.005]
[1725742959545,1.29556818,2275.6,2275.5,0.005]
[1725742959845,1.29556818,2275.6,2275.5,4.39963]
[1725742959846,1.68094034,2275.6,2275.5,4.39963]
[1725742960089,4.7088195,2275.6,2275.5,8.79426]
[1725742961583,5.33151892,2275.6,2275.5,8.79426]
[1725742963065,5.33151892,2275.6,2275.5,0.005]
[1725742968006,4.7088195,2275.6,2275.5,4.39963]
[1725742968804,4.7088195,2275.6,2275.5,0.005]
[1725742968805,8.24530087,2275.6,2275.5,0.005]
[1725742975320,4.7088195,2275.6,2275.5,4.39963]
[1725742976033,5.33151892,2275.6,2275.5,0.005]
[1725742978857,5.33151892,2275.6,2275.5,4.39963]
[1725742980454,8.35501892,2275.6,2275.4,0.01]
[1725742980654,8.35501892,2275.6,2275.0,0.1165014]
[1725742980655,4.39495,2275.4,2275.0,0.1165014]
[1725742980864,4.03595074,2275.1,2275.0,3.1165014]
[1725742981010,4.7088195,2275.1,2275.0,4.5121014]
[1725742982638,5.80240087,2275.1,2275.0,0.1165014]
[1725742984638,5.33151892,2275.1,2275.0,4.5121014]
[1725742984958,4.7088195,2275.1,2275.0,4.5121014]
[1725742986054,4.7088195,2275.1,2275.0,11.3208014]
[1725742986755,4.7088195,2275.1,2275.0,8.9077014]
[1725742988328,5.33151892,2275.1,2275.0,4.5121014]
[1725742989863,6.11202081,2275.1,2275.0,0.1165014]
[1725742990171,5.33151892,2275.1,2275.0,0.1165014]
[1725742990663,5.33151892,2275.1,2275.0,4.5121014]
[1725742991867,0.67286876,2275.1,2275.0,8.9077014]
[1725742992853,4.7088195,2275.1,2275.0,8.9077014]
[1725742993253,5.33151892,2275.1,2275.0,4.5121014]
[1725742994033,2.97785578,2275.1,2275.0,4.5121014]
[1725742994278,2.97785578,2275.1,2275.0,8.9077014]
[1725743000062,2.97785578,2275.1,2275.0,16.64827154]
[1725743000063,0.67286876,2275.1,2275.0,16.64827154]
[1725743000274,1.6822876,2275.4,2275.3,8.78999]
[1725743000449,2.9764866,2275.4,2275.3,8.78999]
[1725743015317,1.294199,2275.4,2275.3,8.78999]
[1725743015521,2.9764866,2275.4,2275.3,14.503547]
[1725743015812,0.67149958,2275.4,2275.3,16.957747]
[1725743017992,1.6822876,2275.6,2275.5,8.78926]
[1725743018315,1.6822876,2275.6,2275.5,8.16081376]
[1725743019027,2.25836332,2275.6,2275.5,8.16081376]
[1725743038187,2.50213483,2275.6,2275.5,3.76618376]
[1725743038350,4.78983483,2275.6,2275.5,3.76618376]
[1725743039985,2.50213483,2275.6,2275.5,3.76618376]
[1725743040144,2.25836332,2275.6,2275.5,3.76618376]
[1725743042489,2.84199113,2275.6,2275.5,3.76618376]
[1725743045354,2.84199113,2275.6,2275.1,0.92080927]
[1725743045554,1.6822876,2275.2,2275.0,0.1165014]
[1725743045756,2.25836332,2275.2,2275.0,0.1165014]
[1725743046383,2.25836332,2275.2,2275.0,4.5120714]
[1725743048586,1.6822876,2275.2,2275.1,4.39541]
[1725743048785,1.6822876,2275.2,2275.1,8.79082]
[1725743048960,3.44740353,2275.5,2275.4,8.78966]
[1725743048961,1.15970353,2275.5,2275.4,8.78966]
[1725743049161,12.48,2276.1,2275.4,8.78966]
[1725743049162,2.2877,2276.2,2276.1,4.39339]
[1725743049390,1.6822876,2276.2,2276.1,4.39339]
[1725743053480,2.19258208,2276.2,2276.0,8.78713]
[1725743053727,2.19258208,2276.2,2276.0,4.39355]
[1725743053879,2.19258208,2276.2,2276.1,4.39348]
[1725743054085,1.86069152,2276.2,2276.1,4.39348]
[1725743056612,0.17840392,2276.2,2276.1,9.665663]
[1725743056919,1.6822876,2276.3,2276.2,4.39328]
[1725743057276,2.19258208,2276.3,2276.2,4.39328]
[1725743058117,1.6822876,2276.3,2276.2,4.39328]
[1725743062036,1.6822876,2276.3,2276.2,8.78656]
[1725743062215,1.6822876,2276.3,2276.2,11.995536]
[1725743062952,1.85468984,2276.4,2276.3,8.78618]
[1725743066232,1.6822876,2276.4,2276.3,8.78618]
[1725743066959,2.4734,2276.9,2276.5,4.3927]
[1725743067127,1.23013974,2276.8,2276.6,4.39251]
[1725743069527,1.23013974,2276.8,2276.3,4.39293]
[1725743069728,1.6822876,2276.5,2276.4,8.7858]
[1725743072151,1.6822876,2276.5,2276.4,11.1161]
[1725743074065,1.6822876,2276.5,2276.4,8.7858]
[1725743079795,1.6822876,2276.5,2276.4,11.1732]
[1725743080010,0.17451848,2276.8,2276.7,4.39232]
[1725743080162,1.6822876,2276.8,2276.7,4.39232]
[1725743080359,2.19258208,2276.8,2276.7,4.39232]
[1725743083701,2.19258208,2276.8,2276.7,8.78464]
[1725743086703,1.6822876,2276.8,2276.7,8.78464]
[1725743086913,2.2322876,2276.8,2276.7,8.78464]
[1725743087281,2.2322876,2276.8,2276.7,9.663104]
[1725743087483,0.68956427,2277.0,2276.9,4.39193]
[1725743087785,2.37185187,2277.0,2276.9,4.39193]
[1725743089016,2.92185187,2277.0,2276.9,4.39193]
[1725743089216,2.92185187,2277.0,2276.8,4.39202]
[1725743089523,0.55,2276.9,2276.8,4.39202]
[1725743090027,0.55,2276.9,2276.8,8.78405]
[1725743091318,0.55,2276.9,2276.8,9.901195]
[1725743092881,0.51029448,2277.3,2277.1,4.39146]
[1725743093103,2.2322876,2277.2,2277.1,4.39145]
[1725743093318,2.2322876,2277.2,2277.1,8.783]
[1725743093622,2.2322876,2277.2,2277.1,9.67008278]
[1725743097232,2.255,2277.7,2277.4,4.39093]
[1725743097233,0.51029448,2277.6,2277.4,4.39093]
[1725743097393,1.6822876,2277.5,2277.4,4.39093]
[1725743097594,2.19258208,2277.5,2277.4,4.39093]
[1725743098231,2.19258208,2277.5,2277.2,4.39116]
[1725743098434,2.19258208,2277.5,2277.3,4.39113]
[1725743098435,0.51029448,2277.5,2277.3,4.39113]
[1725743098937,2.8512,2277.4,2277.0,4.39161]
[1725743099101,0.51029448,2277.3,2277.1,4.39154]
[1725743099441,0.55,2277.2,2277.1,4.39154]
[1725743099624,2.2322876,2277.2,2277.1,4.39154]
[1725743103199,2.2322876,2277.2,2276.4,3.37580927]
[1725743103200,2.3012,2277.1,2276.4,3.37580927]
[1725743103400,2.73666581,2277.2,2276.4,3.37580927]
[1725743103401,1.6822876,2276.5,2276.4,4.3928]
[1725743103645,1.6822876,2276.5,2276.1,4.39335]
[1725743103646,2.21665503,2276.5,2276.1,4.39335]
[1725743103801,1.6822876,2276.2,2275.9,4.39375]
[1725743104003,1.6822876,2276.2,2275.7,4.39413]
[1725743104004,1.6822876,2276.0,2275.7,4.39413]
[1725743104207,1.6822876,2275.8,2275.3,4.39484]
[1725743104441,1.6822876,2275.4,2275.3,4.39484]
[1725743105221,1.6822876,2275.4,2275.3,8.78986]
[1725743106030,1.6822876,2275.4,2275.3,4.39484]
[1725743106230,2.2322876,2275.4,2275.3,4.39484]
[1725743107054,0.17398465,2275.9,2275.6,4.39442]